bitfinex-derivatives/quotes_ETHF0:USTF0_20260112
["timestamp","ask_amount","ask_price","bid_price","bid_amount"]
[1768230664985,1.313,3101.4,3099.5,0.00226821]
[1768230664986,3.73138514,3100.9,3099.5,0.00226821]
[1768230667287,3.56995514,3100.6,3098.2,0.16157]
[1768230667585,3.56995514,3100.6,3098.0,3.40339603]
[1768230667893,3.56995514,3100.4,3098.0,3.40339603]
[1768230668088,3.56995514,3100.2,3098.0,3.40339603]
[1768230668288,3.56995514,3100.2,3098.0,3.40754729]
[1768230668488,3.56995514,3100.2,3098.1,3.40339603]
[1768230668898,3.56995514,3100.2,3098.3,0.16157]
[1768230671185,4.88295514,3100.2,3098.3,0.16157]
[1768230671385,3.56995514,3100.1,3098.3,0.16157]
[1768230675900,3.56995514,3100.1,3098.1,1.87644444]
[1768230677394,3.56995514,3100.1,3098.0,3.40754729]
[1768230677395,3.73142514,3100.1,3098.0,3.40754729]
[1768230677789,3.54861396,3099.9,3098.0,0.00415126]
[1768230677994,3.71294231,3099.9,3098.0,0.00415126]
[1768230678902,3.54861396,3099.7,3098.0,0.00415126]
[1768230680303,3.71010396,3099.7,3098.0,0.00415126]
[1768230681401,3.54861396,3099.7,3098.2,0.16157]
[1768230681598,0.00283835,3099.9,3098.2,2.03801444]
[1768230681800,3.55145231,3099.9,3098.2,2.03801444]
[1768230681997,3.55145231,3099.9,3098.4,0.16156]
[1768230682297,0.00283835,3099.9,3098.4,3.61652925]
[1768230684007,0.00283835,3099.9,3098.7,2.03798444]
[1768230684307,3.55145231,3099.9,3098.2,0.16157]
[1768230686008,3.71294231,3099.9,3098.0,0.00415126]
[1768230688808,0.00283835,3099.9,3098.2,5.49298369]
[1768230689110,0.00283835,3099.9,3098.7,0.16155]
[1768230690410,0.00283835,3099.9,3098.8,0.16154]
[1768230690609,3.54861396,3100.6,3098.9,0.16153]
[1768230690909,3.71007396,3100.4,3098.3,0.16157]
[1768230691512,3.71335248,3100.4,3098.3,0.16157]
[1768230692304,4.50497534,3100.3,3098.3,0.16157]
[1768230692510,3.54861396,3100.2,3098.5,3.45496925]
[1768230692709,0.16473852,3100.4,3098.5,3.45496925]
[1768230692914,0.00327852,3100.4,3098.5,3.45496925]
[1768230693215,0.00327852,3100.4,3098.8,0.16154]
[1768230693416,0.00327852,3100.4,3098.9,0.16154]
[1768230694409,3.54497464,3100.4,3098.3,0.16156]
[1768230694613,3.54497464,3100.4,3098.3,3.60895044]
[1768230694809,0.95797644,3100.3,3098.3,3.60895044]
[1768230695016,3.54169612,3100.2,3098.3,3.60895044]
[1768230695702,0.95818435,3100.1,3098.3,3.60895044]
[1768230695907,3.54169612,3100.1,3098.3,3.60895044]
[1768230696112,3.70316612,3100.1,3098.3,0.16156]
[1768230696415,3.54169612,3099.9,3098.3,0.16156]
[1768230697109,3.54169612,3099.7,3098.0,0.00415126]
[1768230697310,3.54169612,3099.5,3098.0,0.00415126]
[1768230699514,3.54169612,3099.3,3098.0,0.00415126]
[1768230700508,3.54169612,3099.8,3098.1,0.16157]
[1768230700705,3.54169612,3099.8,3098.4,0.16156]
[1768230700903,3.54169612,3100.3,3098.4,1.87644444]
[1768230701105,0.95834015,3100.2,3098.5,3.44739044]
[1768230701314,0.00327852,3100.4,3098.9,1.87644444]
[1768230701509,0.00327852,3100.4,3099.2,0.16152]
[1768230706621,3.54497464,3100.4,3098.5,1.87644444]
[1768230706923,3.54497464,3100.4,3098.9,0.16153]
[1768230707112,0.00327852,3100.4,3098.9,0.16153]
[1768230707622,0.00327852,3100.4,3099.0,0.16153]
[1768230707914,3.54497464,3100.4,3099.0,0.16153]
[1768230708115,3.54169612,3100.2,3098.2,4.03571309]
[1768230708307,3.54169612,3099.7,3097.7,0.1616]
[1768230708512,3.54169612,3099.5,3097.7,0.1616]
[1768230708718,3.70320612,3099.5,3097.7,0.1616]
[1768230708918,3.70320612,3099.5,3097.6,0.25829589]
[1768230709219,3.70320612,3099.5,3097.4,1.87644444]
[1768230709519,3.70320612,3099.5,3097.4,0.25270583]
[1768230710916,3.54169612,3099.3,3097.4,0.25270583]
[1768230711518,3.54169612,3099.3,3097.3,0.16162]
[1768230713122,3.54169612,3099.3,3097.3,0.4142117]
[1768230713419,3.70321612,3099.3,3097.3,0.16162]
[1768230717129,4.85369612,3099.2,3097.3,0.16162]
[1768230717427,3.54169612,3099.1,3097.3,0.16162]
[1768230720822,3.54169612,3098.9,3096.8,0.16164]
[1768230721016,3.54169612,3098.7,3096.8,0.42095595]
[1768230721216,3.54169612,3098.5,3096.5,1.18579617]
[1768230721525,3.54169612,3097.8,3096.5,1.18579617]
[1768230721730,1.313,3097.7,3096.5,1.18812498]
[1768230722125,4.85469612,3097.7,3096.5,1.18812498]
[1768230722327,3.54169612,3097.6,3096.5,1.18812498]
[1768230723724,3.54169612,3097.4,3096.5,1.18812498]
[1768230727430,3.54169612,3097.4,3095.6,0.16171]
[1768230727621,3.49691881,3097.2,3095.3,3.44739044]
[1768230728424,3.49691881,3097.2,3095.3,3.45016338]
[1768230728732,3.49691881,3097.2,3095.3,3.86491732]
[1768230729033,3.49691881,3097.2,3095.4,3.63198674]
[1768230729223,3.231,3097.6,3095.8,3.47026674]
[1768230729424,1.314,3097.5,3095.9,3.63195674]
[1768230729625,3.49691881,3097.7,3095.9,3.63195674]
[1768230729933,1.314,3097.6,3095.9,3.63195674]
[1768230731928,3.49691881,3097.5,3095.5,3.47026674]
[1768230732229,3.65853881,3097.3,3095.3,0.16449294]
[1768230732433,0.16163,3097.2,3095.3,0.16449294]
[1768230732628,3.5627487,3097.1,3095.3,0.16449294]
[1768230733130,1.314,3097.0,3095.3,3.53895853]
[1768230733330,1.314,3096.9,3095.4,3.53618559]
[1768230733737,3.7243987,3096.8,3095.3,0.00277294]
[1768230734034,3.5627487,3096.6,3095.3,0.00277294]
[1768230734337,3.7244387,3096.0,3094.0,0.262501]
[1768230734527,5.0384387,3095.9,3093.9,3.37446559]
[1768230734727,8.2694387,3095.9,3093.9,3.37446559]
[1768230735026,3.5627487,3095.8,3093.9,3.37446559]
[1768230735232,3.5627487,3095.8,3093.9,3.37771799]
[1768230735826,1.314,3095.7,3093.9,3.37771799]
[1768230736036,3.5627487,3095.6,3093.9,3.37771799]
[1768230736336,4.8767487,3095.5,3093.9,0.0032524]
[1768230736923,3.5627487,3095.4,3093.9,0.0032524]
[1768230737327,3.7244687,3095.4,3093.9,0.0032524]
[1768230737533,3.5627487,3095.3,3093.9,0.0032524]
[1768230737838,0.16172,3095.4,3093.9,0.0032524]
[1768230737839,3.5627487,3095.1,3093.9,0.0032524]
[1768230738134,3.7244987,3094.9,3092.7,0.16186]
[1768230738536,3.7244987,3094.9,3092.7,3.80089719]
[1768230738537,8.1097487,3094.8,3092.7,3.80089719]
[1768230738735,3.5627487,3094.7,3092.7,3.80089719]
[1768230739037,3.5627487,3094.7,3092.7,3.80434915]
[1768230739439,4.547,3094.6,3092.7,3.80434915]
[1768230740137,8.1097487,3094.6,3092.7,3.80434915]
[1768230740328,8.1097487,3094.6,3092.7,3.37791755]
[1768230740329,3.5627487,3094.4,3092.7,3.37791755]
[1768230740530,1.315,3094.3,3092.7,3.37791755]
[1768230741333,3.5627487,3094.4,3092.7,3.37791755]
[1768230741648,3.7244687,3095.4,3092.9,3.37446559]
[1768230741828,3.5627487,3095.0,3092.9,3.37446559]
[1768230742225,8.1107487,3094.9,3092.9,3.37446559]
[1768230742630,3.5627487,3094.8,3092.9,3.37446559]
[1768230742830,3.5627487,3094.8,3092.8,0.16185]
[1768230744039,4.548,3094.7,3092.8,0.16185]
[1768230744336,4.548,3094.6,3092.8,3.53631559]
[1768230746441,3.5627487,3094.8,3092.7,0.26045728]
[1768230746442,3.5627487,3094.8,3093.1,3.53630559]
[1768230746645,1.122,3094.7,3093.3,3.37446559]
[1768230746833,1.316,3094.6,3093.3,3.37446559]
[1768230747435,3.5627487,3095.3,3093.3,3.53629559]
[1768230747635,4.55,3095.2,3093.3,3.53629559]
[1768230747839,8.1127487,3095.2,3093.3,3.53629559]
[1768230748042,1.316,3095.1,3093.3,3.53629559]
[1768230748245,1.316,3095.0,3093.3,3.53629559]
[1768230748542,3.5627487,3095.2,3093.4,0.16182]
[1768230748746,1.316,3095.1,3093.4,3.53628559]
[1768230749443,1.316,3095.2,3093.7,3.53626559]
[1768230750441,3.5627487,3095.5,3093.8,3.53626559]
[1768230750642,3.5627487,3096.0,3093.8,3.37446559]
[1768230750829,1.32008376,3095.6,3094.1,0.16179]
[1768230751229,1.32008376,3095.6,3094.1,3.53625559]
[1768230751433,0.00408376,3095.6,3094.1,3.53625559]
[1768230751633,0.00408376,3095.6,3094.5,3.37446559]
[1768230751839,3.5627487,3096.5,3094.6,3.37446559]
[1768230752039,1.316,3096.4,3094.6,3.37446559]
[1768230752745,3.5627487,3096.5,3094.8,0.16175]
[1768230752945,3.56619984,3096.5,3094.8,0.16175]
[1768230753242,1.316,3096.4,3094.8,0.16175]
[1768230753636,0.00345114,3096.5,3095.0,3.53620559]
[1768230753844,0.00345114,3096.5,3095.0,3.54025558]
[1768230754338,3.3310409,3097.5,3095.6,3.4016748]
[1768230754546,1.316,3097.4,3095.6,3.4016748]
[1768230754946,4.6470409,3097.4,3095.6,3.66427072]
[1768230755343,3.3310409,3097.4,3095.6,3.82598072]
[1768230755544,0.00340221,3097.4,3095.9,3.4016748]
[1768230755742,0.00340221,3097.4,3096.0,3.5633648]
[1768230758049,0.00340221,3097.4,3096.1,3.5633548]
[1768230758960,0.00340221,3097.4,3096.2,3.5633548]
[1768230759641,0.00340221,3097.4,3095.7,3.4016748]
[1768230760243,0.00340221,3097.4,3095.7,3.5633748]
[1768230761043,0.00340221,3097.4,3095.8,0.1617]
[1768230761253,0.00340221,3097.4,3095.8,3.5633748]
[1768230761449,0.00340221,3097.4,3096.1,3.4016748]
[1768230761753,0.00340221,3097.4,3096.1,3.5633548]
[1768230766462,0.00340221,3097.4,3095.7,1.39]
[1768230766463,3.33444311,3097.4,3095.7,1.39]
[1768230767648,3.33444311,3097.4,3095.6,3.8157997]
[1768230769054,3.33444311,3097.4,3095.1,3.5634048]
[1768230769255,3.3310409,3096.7,3095.0,0.00404999]
[1768230769462,3.3310409,3096.5,3095.0,0.2603097]
[1768230769654,3.3310409,3096.5,3095.0,0.00404999]
[1768230770649,3.3310409,3097.2,3095.0,0.00404999]
[1768230770857,3.3310409,3097.2,3095.7,0.1617]
[1768230773165,3.3310409,3097.3,3095.2,0.16173]
[1768230774366,1.315,3097.2,3095.5,0.16171]
[1768230774669,3.3310409,3097.1,3095.5,0.16171]
[1768230775069,1.315,3097.0,3095.5,0.16171]
[1768230775970,3.3310409,3097.1,3095.5,3.5633848]
[1768230776172,4.6460409,3097.1,3095.5,3.5633848]
[1768230776469,3.3310409,3097.0,3095.5,0.16171]
[1768230777760,3.3310409,3097.0,3095.6,0.16171]
[1768230777965,1.315,3097.3,3095.6,0.16171]
[1768230778973,4.6460409,3097.3,3095.6,0.16171]
[1768230779474,3.3310409,3097.2,3095.6,0.16171]
[1768230779774,3.3310409,3097.2,3095.7,0.1617]
[1768230779975,3.3310409,3097.2,3095.8,0.1617]
[1768230780377,0.00340221,3097.4,3095.9,0.16169]
[1768230780572,0.00340221,3097.4,3095.8,3.4016748]
[1768230780976,1.441,3098.1,3096.4,0.16166]
[1768230781271,1.441,3098.1,3096.0,3.4016748]
[1768230781482,0.126,3098.1,3096.0,3.4016748]
[1768230781672,0.126,3098.1,3096.5,0.16166]
[1768230781877,3.46102235,3098.1,3096.5,0.16166]
[1768230787777,3.46102235,3098.1,3096.8,0.16164]
[1768230787976,0.12998145,3098.1,3097.0,0.16163]
[1768230790680,3.60845064,3098.1,3096.4,0.16167]
[1768230791182,0.95408812,3098.0,3095.9,0.16169]
[1768230791380,3.77003064,3098.1,3095.9,0.16169]
[1768230791573,3.47846919,3097.9,3095.9,0.16169]
[1768230791877,3.47846919,3097.9,3096.0,0.16169]
[1768230792272,3.47846919,3097.9,3095.8,3.37364032]
[1768230792678,3.47846919,3097.9,3096.3,0.16167]
[1768230793879,3.47846919,3097.9,3095.3,12.26899782]
[1768230794082,2.2681697,3097.8,3096.2,0.16167]
[1768230794274,1.314,3097.9,3096.4,0.16167]
[1768230794475,4.80927312,3097.9,3096.4,0.16167]
[1768230795384,3.49527312,3097.8,3096.4,0.16167]
[1768230795585,3.49527312,3097.8,3095.8,0.1617]
[1768230795784,0.95419382,3097.7,3095.8,0.1617]
[1768230795983,3.49527312,3097.8,3095.8,0.1617]
[1768230796185,1.314,3097.9,3095.8,0.1617]
[1768230796186,3.49527312,3097.6,3095.8,0.1617]
[1768230796580,3.65687312,3097.6,3095.8,0.1617]
[1768230797480,1.314,3097.5,3095.8,0.1617]
[1768230797678,4.80927312,3097.5,3095.8,0.1617]
[1768230798087,3.49527312,3097.4,3095.8,0.1617]
[1768230799284,3.65689312,3097.4,3095.4,3.64828473]
[1768230799490,3.65689312,3097.4,3095.0,1.88384102]
[1768230799975,3.65689312,3097.4,3095.3,0.16172]
[1768230800987,0.95476388,3097.3,3095.3,0.16172]
[1768230801292,3.49527312,3097.2,3095.3,0.16172]
[1768230801785,3.49527312,3097.2,3095.7,0.1617]
[1768230802094,3.49527312,3097.2,3095.8,0.1617]
[1768230803380,1.314,3097.5,3095.9,0.16169]
[1768230803997,3.49527312,3097.7,3095.9,0.16169]
[1768230804191,4.80927312,3097.6,3095.9,0.16169]
[1768230804690,3.49527312,3097.5,3095.9,0.16169]
[1768230807692,3.49527312,3098.0,3096.4,0.16166]
[1768230807899,3.49527312,3098.0,3096.1,3.64828473]
[1768230807900,4.80927312,3098.0,3096.1,3.64828473]
[1768230808285,4.80927312,3098.0,3096.5,0.16166]
[1768230808493,3.49527312,3097.9,3096.5,0.16166]
[1768230809389,0.12998145,3098.1,3096.5,1.87979103]
[1768230809703,0.12998145,3098.1,3096.8,0.16164]
[1768230810797,0.12998145,3098.1,3096.9,0.16164]
[1768230811201,0.12998145,3098.1,3097.0,0.16163]
[1768230815993,3.56035307,3098.1,3096.6,1.39]
[1768230818306,3.56035307,3098.1,3096.4,0.16166]
[1768230818604,3.72193307,3098.1,3096.0,0.16169]
[1768230818805,3.72193307,3098.1,3095.5,7.16615182]
[1768230818806,0.12998145,3098.1,3096.4,3.37589354]
[1768230819106,0.12998145,3098.1,3096.8,0.16164]
[1768230819308,0.12998145,3098.1,3096.8,1.87979103]
[1768230819510,0.12998145,3098.1,3097.1,0.16163]
[1768230820100,3.56035307,3098.1,3096.5,3.43145103]
[1768230820305,3.56035307,3098.1,3096.5,1.55166]
[1768230821305,3.56035307,3098.1,3096.6,0.16166]
[1768230821900,3.56035307,3098.1,3096.7,0.16165]
[1768230823111,0.12998145,3098.1,3096.7,0.16165]
[1768230824716,0.12998145,3098.1,3096.6,1.39]
[1768230824717,0.12998145,3098.1,3096.6,4.76589354]
[1768230825512,0.12998145,3098.1,3097.1,0.16163]
[1768230826017,3.43037162,3099.1,3097.5,1.87979103]
[1768230826314,3.43037162,3099.1,3097.5,2.04140103]
[1768230826906,3.43340147,3099.1,3098.0,1.87979103]
[1768230827111,0.00302985,3099.1,3098.0,1.87979103]
[1768230827314,0.00302985,3099.1,3098.1,0.16158]
[1768230827711,3.43037162,3099.6,3098.1,0.42041868]
[1768230827911,3.43037162,3099.6,3098.1,0.16158]
[1768230828722,3.43412425,3099.6,3098.1,0.41683373]
[1768230831423,0.00375263,3099.6,3098.2,0.16157]
[1768230832711,0.00375263,3099.6,3098.3,0.16157]
[1768230833722,0.00375263,3099.6,3098.4,0.16156]
[1768230836020,0.00375263,3099.6,3098.4,3.53745354]
[1768230836220,3.43037162,3100.5,3098.7,3.53744354]
[1768230836921,3.43037162,3100.5,3099.0,1.87979103]
[1768230837126,3.43279415,3100.5,3099.0,2.04132103]
[1768230837623,0.00242253,3100.5,3099.2,0.16152]
[1768230839521,3.43279415,3100.5,3098.8,1.351]
[1768230840322,3.43279415,3100.5,3098.7,0.16155]
[1768230844631,3.59425415,3100.5,3098.1,5.14371727]
[1768230844830,3.40677498,3100.3,3098.1,5.14271727]
[1768230845033,3.40677498,3100.3,3098.3,3.65745924]
[1768230845236,3.40677498,3100.3,3098.4,0.16156]
[1768230847233,3.56823498,3100.3,3098.4,0.16156]
[1768230848225,3.40677498,3100.3,3098.8,0.16154]
[1768230848436,0.00242253,3100.5,3098.8,3.65743924]
[1768230848639,3.40919751,3100.5,3098.8,3.65743924]
[1768230848935,3.40919751,3100.5,3099.0,0.16153]
[1768230851041,3.40919751,3100.5,3098.5,1.39]
[1768230851237,3.57064751,3100.5,3098.5,1.55156]
[1768230853337,3.46215064,3100.3,3098.5,1.55156]
[1768230853539,3.46215064,3100.3,3098.5,0.16156]
[1768230853738,3.46215064,3100.0,3098.1,0.25525373]
[1768230854041,3.46215064,3100.0,3098.2,0.16157]
[1768230857241,3.46215064,3099.8,3098.0,1.39]
[1768230857546,0.95506661,3099.7,3097.8,0.16159]
[1768230857842,3.62364064,3099.8,3097.8,0.16159]
[1768230857843,3.46215064,3099.6,3097.8,0.41886297]
[1768230860034,3.46215064,3099.6,3097.9,0.16159]
[1768230860535,3.46215064,3099.6,3098.0,0.16158]
[1768230860843,3.46215064,3100.0,3098.1,3.80008427]
[1768230861045,4.41705339,3099.9,3098.1,3.80008427]
[1768230861246,3.46215064,3099.9,3098.1,3.80008427]
[1768230862946,3.46215064,3099.9,3098.1,0.16158]
[1768230866646,3.46215064,3100.4,3098.0,3.63850427]
[1768230866953,0.16387253,3100.5,3098.7,0.16155]
[1768230866954,4.41629325,3100.3,3098.7,0.16155]
[1768230867141,3.46215064,3100.2,3098.7,0.16155]
[1768230867644,3.46215064,3100.2,3098.2,0.16157]
[1768230868035,3.46215064,3100.2,3098.3,0.16157]
[1768230868745,3.46215064,3100.2,3097.9,5.42571309]
[1768230868746,3.46215064,3100.0,3097.9,5.58730309]
[1768230868950,3.46215064,3099.8,3097.9,0.16159]
[1768230869750,0.00242253,3100.5,3097.9,0.16159]
[1768230869751,3.46215064,3099.6,3097.9,0.16159]
[1768230870844,3.46215064,3099.2,3097.5,3.64097781]
[1768230871247,3.46215064,3099.2,3097.5,3.89680388]
[1768230871446,3.46215064,3099.2,3097.5,4.05841388]
[1768230871654,3.46215064,3099.2,3097.6,0.1616]
[1768230873752,3.46215064,3099.2,3097.7,3.80009427]
[1768230873960,3.62364064,3099.7,3097.8,3.80009427]
[1768230874148,3.46215064,3099.5,3097.8,0.16159]
[1768230876462,3.62366064,3099.5,3097.5,0.25829961]
[1768230877055,3.32694688,3099.3,3097.5,0.25829961]
[1768230877649,3.48846688,3099.3,3097.5,0.25829961]
[1768230877853,3.32694688,3099.1,3097.5,0.00247354]
[1768230880565,3.32694688,3099.7,3097.7,3.56189772]
[1768230880754,3.32694688,3099.5,3097.7,3.56189772]
[1768230881869,3.32694688,3099.5,3097.7,3.40029772]
[1768230882063,3.32694688,3099.5,3097.9,3.40029772]
[1768230882770,3.32694688,3100.0,3098.1,3.56187772]
[1768230882966,3.32694688,3099.8,3098.1,3.56187772]
[1768230883558,3.32694688,3100.4,3098.5,0.16156]
[1768230883765,0.95468078,3100.3,3098.5,3.56185772]
[1768230883960,3.32694688,3100.4,3098.5,3.56185772]
[1768230884166,0.95464181,3100.3,3098.5,3.56185772]
[1768230884365,3.32694688,3100.4,3098.5,3.56185772]
[1768230884568,0.95455203,3100.3,3098.5,3.56185772]
[1768230884756,3.32694688,3100.4,3098.5,3.56185772]
[1768230884957,4.28148764,3100.3,3098.5,3.56185772]
[1768230885252,3.32694688,3100.3,3098.5,3.56185772]
[1768230887967,0.00242253,3100.5,3098.8,3.56183772]
[1768230888554,0.00242253,3100.5,3098.8,3.40029772]
[1768230889071,0.00242253,3100.5,3099.1,0.16153]
[1768230890559,0.00242253,3100.5,3098.4,4.03571309]
[1768230890560,0.00242253,3100.5,3099.2,3.56181772]
[1768230893161,0.00242253,3100.5,3099.4,3.56180772]
[1768230893969,0.00242253,3100.5,3099.5,0.1615]
[1768230894272,3.32694688,3101.7,3099.8,3.56178772]
[1768230895066,3.32694688,3101.7,3099.9,3.40029772]
[1768230895270,3.32932931,3101.7,3099.9,3.4037446]
[1768230895571,3.32932931,3101.7,3100.3,0.16146]
[1768230898860,0.00238243,3101.7,3100.3,3.56175772]
[1768230899763,0.00238243,3101.7,3100.4,0.16146]
[1768230899959,0.00238243,3101.7,3100.4,3.56175772]
[1768230900558,0.00238243,3101.7,3100.4,3.8197148]
[1768230900767,0.00238243,3101.7,3100.4,3.56175772]
[1768230901069,3.32932931,3101.7,3099.9,3.4037446]
[1768230901662,3.32932931,3101.7,3099.9,3.5652246]
[1768230901864,3.32932931,3101.7,3100.0,0.16148]
[1768230902068,0.00238243,3101.7,3100.5,0.16145]
[1768230902574,0.00238243,3101.7,3100.7,0.16144]
[1768230902763,3.32694688,3102.3,3100.9,0.16143]
[1768230903675,3.32988057,3102.3,3100.4,3.56175772]
[1768230905077,3.32988057,3102.3,3100.5,0.16145]
[1768230905377,3.32988057,3102.3,3100.5,3.56225296]
[1768230905766,3.32988057,3102.3,3100.7,0.16144]
[1768230906073,3.32988057,3102.3,3100.5,3.56225296]
[1768230906262,3.40325757,3102.1,3100.2,1.64549623]
[1768230906468,3.56462757,3102.1,3100.2,1.64549623]
[1768230906672,3.40325757,3101.9,3100.1,0.16147]
[1768230907072,3.40325757,3101.9,3099.9,0.00344688]
[1768230907282,3.40325757,3101.4,3099.9,0.00344688]
[1768230908670,3.40325757,3101.9,3099.9,3.56569984]
[1768230908974,3.40619126,3102.3,3100.6,3.72369296]
[1768230909775,3.40619126,3102.3,3100.7,0.16144]
[1768230910076,3.40619126,3102.3,3100.6,3.56225296]
[1768230910469,0.00293369,3102.3,3100.9,0.16143]
[1768230910667,0.00293369,3102.3,3100.9,3.72368296]
[1768230912788,3.35370374,3102.3,3100.4,3.59037059]
[1768230912978,3.35077005,3101.8,3099.9,0.00344688]
[1768230913180,3.35077005,3101.6,3099.9,0.00344688]
[1768230913373,3.51217005,3101.6,3099.9,0.00344688]
[1768230914983,3.35077005,3101.6,3099.9,3.75529747]
[1768230915883,3.35077005,3101.6,3100.1,0.16147]
[1768230916085,4.65977005,3102.1,3100.2,0.16147]
[1768230916282,0.00293369,3102.3,3100.1,3.59037059]
[1768230916483,0.00293369,3102.3,3100.5,3.59037059]
[1768230916677,0.00293369,3102.3,3100.7,0.16144]
[1768230916874,0.00293369,3102.3,3100.8,0.16144]
[1768230918679,0.00293369,3102.3,3100.9,3.75180059]
[1768230919488,0.00293369,3102.3,3100.9,0.16143]
[1768230919713,3.35370374,3102.3,3100.9,0.16143]
[1768230920189,9.51506374,3102.3,3100.2,0.16147]
[1768230920488,3.35077005,3102.1,3100.2,0.16147]
[1768230921285,3.35077005,3101.9,3100.2,0.16147]
[1768230925191,3.51215005,3101.9,3099.9,3.59381747]
[1768230925394,3.35077005,3101.7,3099.9,3.59381747]
[1768230927590,3.35077005,3101.7,3100.0,0.16148]
[1768230927794,3.35077005,3102.2,3100.3,0.16146]
[1768230927991,4.30385335,3102.1,3100.3,0.16146]
[1768230928293,0.00293369,3102.3,3100.7,5.58974492]
[1768230928484,0.00293369,3102.3,3101.0,0.16142]
[1768230931497,0.00293369,3102.3,3100.7,5.58974492]
[1768230931885,3.35370374,3102.3,3100.4,0.16146]
[1768230932791,3.35370374,3102.3,3099.9,0.00344688]
[1768230932983,3.51216005,3101.8,3099.9,0.00344688]
[1768230934205,3.51216005,3101.8,3099.9,3.75529747]
[1768230935492,3.64937239,3101.4,3099.9,0.00344688]
[1768230937002,3.64937239,3101.2,3099.9,0.00344688]
[1768230937400,3.81079239,3101.2,3099.9,0.00344688]
[1768230938284,3.64937239,3101.2,3099.9,0.00344688]
[1768230940096,3.81076239,3101.7,3099.9,0.00344688]
[1768230940291,4.60209669,3101.6,3099.9,0.00344688]
[1768230940497,5.64874672,3101.4,3099.9,0.00344688]
[1768230940795,3.64937239,3101.2,3099.9,0.00344688]
[1768230940984,3.81079239,3101.2,3099.9,0.00344688]
[1768230943797,3.64937239,3101.7,3099.9,3.36881587]
[1768230944591,3.64937239,3101.7,3100.2,0.16146]
[1768230944899,3.64937239,3102.2,3100.4,3.36536899]
[1768230946095,0.00293369,3102.3,3100.7,3.52680899]
[1768230946297,0.00293369,3102.3,3100.9,0.16143]
[1768230947401,0.00293369,3102.3,3100.4,2.16083433]
[1768230947596,0.00293369,3102.3,3100.5,0.16145]
[1768230948096,0.00293369,3102.3,3100.6,0.16145]
[1768230948497,0.00293369,3102.3,3100.7,0.16144]
[1768230949106,0.00293369,3102.3,3100.8,0.16144]
[1768230949403,0.00293369,3102.3,3100.8,3.52680899]
[1768230951009,0.00293369,3102.3,3100.9,3.52679899]
[1768230951206,3.64937239,3103.2,3101.5,3.52676899]
[1768230951507,3.64937239,3103.6,3101.5,3.36536899]
[1768230952099,3.65315868,3103.6,3101.5,3.36536899]
[1768230952404,3.65315868,3103.6,3101.8,0.16138]
[1768230952708,3.65315868,3103.6,3101.5,3.36536899]
[1768230952709,3.81444868,3103.6,3101.5,3.36536899]
[1768230953203,3.64937239,3103.4,3101.4,0.1614]
[1768230953409,3.64937239,3103.4,3101.6,3.36536899]
[1768230954003,3.64937239,3103.4,3101.6,3.52676899]
[1768230955010,3.64937239,3103.4,3101.7,3.52675899]
[1768230955210,3.64937239,3103.4,3101.3,1.99937433]
[1768230955211,0.00378629,3103.6,3102.0,3.52673899]
[1768230955608,3.65315868,3103.6,3102.0,0.16137]
[1768230955914,3.65315868,3103.6,3101.5,5.36474332]
[1768230956115,0.00378629,3103.6,3102.1,3.36536899]
[1768230956314,0.00378629,3103.6,3102.1,3.36767484]
[1768230959014,3.81445868,3103.6,3102.1,0.00230585]
[1768230961417,3.65315868,3103.6,3102.1,0.00230585]
[1768230961632,3.81069239,3103.1,3101.2,0.16141]
[1768230961818,5.11869239,3103.1,3101.2,0.16141]
[1768230962019,3.64937239,3103.0,3101.4,3.52676899]
[1768230962218,3.64937239,3103.0,3101.5,0.1614]
[1768230962415,3.64937239,3103.5,3101.5,3.52676899]
[1768230962620,4.95737239,3103.5,3101.6,3.36536899]
[1768230963024,4.95737239,3103.5,3101.7,0.16139]
[1768230963226,3.64937239,3103.4,3101.7,0.16139]
[1768230963823,3.64937239,3103.1,3101.5,0.00291239]
[1768230964631,3.81069239,3103.1,3101.5,0.00291239]
[1768230965736,5.11869239,3103.1,3101.5,0.00291239]
[1768230966226,3.64937239,3103.1,3101.5,0.16431239]
[1768230966427,3.64350527,3103.6,3101.6,3.35109134]
[1768230966730,1.308,3103.3,3101.6,3.35109134]
[1768230967634,1.308,3103.3,3101.7,3.51248134]
[1768230968233,4.78642898,3103.5,3101.7,3.51248134]
[1768230969235,3.47842898,3103.5,3101.7,3.51248134]
[1768230969438,0.00378629,3103.6,3102.0,3.51246134]
[1768230969636,0.00378629,3103.6,3102.2,3.35109134]
[1768230969838,0.00378629,3103.6,3102.3,0.16136]
[1768230970146,3.47842898,3104.5,3103.0,1.99937433]
[1768230970436,3.47842898,3104.5,3103.0,2.16069433]
[1768230970738,4.78642898,3105.1,3103.1,0.16132]
[1768230970927,4.78642898,3105.1,3103.0,5.60338091]
[1768230971126,4.78642898,3105.1,3103.4,3.51239134]
[1768230971732,3.226,3105.5,3103.6,3.35109134]
[1768230972239,6.78287333,3105.5,3103.6,3.35109134]
[1768230974240,0.00387784,3105.5,3104.1,3.5845785]
[1768230974538,3.55687333,3105.5,3104.1,0.00415158]
[1768230975040,3.71420549,3105.3,3103.1,3.4233185]
[1768230975243,3.71420549,3105.3,3102.7,3.38734]
[1768230975244,3.55299549,3104.8,3102.7,0.16134]
[1768230975439,3.71423549,3104.6,3102.6,3.4233185]
[1768230975639,3.55299549,3104.4,3102.6,3.4233185]
[1768230976135,3.55299549,3104.4,3102.6,3.42637782]
[1768230977234,3.55299549,3104.1,3102.6,0.00305932]
[1768230977434,3.55299549,3103.9,3102.6,0.00305932]
[1768230977636,3.71428549,3103.7,3101.8,0.16138]
[1768230977841,3.55299549,3103.5,3101.5,3.4233185]
[1768230978040,3.55299549,3103.3,3101.2,0.16142]
[1768230978441,3.71430549,3103.3,3101.2,0.16142]
[1768230978742,3.55299549,3102.4,3101.2,0.0030154]
[1768230979040,3.55299549,3102.2,3100.0,3.4233185]
[1768230979543,3.55299549,3102.2,3100.0,0.25442231]
[1768230979842,3.55299549,3102.2,3100.0,3.4233185]
[1768230980032,3.55299549,3102.2,3100.0,3.42741449]
[1768230981945,1.307,3102.5,3100.7,3.4233185]
[1768230982846,3.55299549,3102.7,3100.7,3.4233185]
[1768230983142,1.308,3102.6,3100.7,3.4233185]
[1768230983943,1.308,3102.6,3100.7,3.5847585]
[1768230984544,3.55299549,3102.7,3100.8,3.5847585]
[1768230984844,3.55299549,3102.7,3100.8,0.16144]
[1768230985036,3.55299549,3102.7,3100.2,3.4233185]
[1768230985242,3.55299549,3102.7,3100.2,3.5847885]
[1768230986843,3.55299549,3102.3,3100.2,3.5847885]
[1768230987546,3.55299549,3102.2,3100.2,3.5847885]
[1768230989248,3.71436549,3102.2,3100.0,0.00409599]
[1768230989550,3.55299549,3102.0,3100.0,0.00409599]